[Event "Early-Titled-Tuesday-Blitz-March-26-2024"]
[Site "Chess.com"]
[Date "2024.03.26"]
[Round "2"]
[White "atalz0"]
[Black "ChessQueen"]
[Result "0-1"]
[WhiteElo "2380"]
[BlackElo "2759"]
[TimeControl "180+1"]
[EndTime "8:15:33 PDT"]
[Termination "ChessQueen won on time"]

1. d4 {[%clk 0:03:00.9]} 1... f5 {[%clk 0:02:59.8]} 2. g3 {[%clk 0:03:00.7]}
2... Nf6 {[%clk 0:02:59.7]} 3. Bg2 {[%clk 0:03:00.9]} 3... g6 {[%clk 0:03:00.3]}
4. Nh3 {[%clk 0:03:00.7]} 4... Bg7 {[%clk 0:03:00.1]} 5. c4 {[%clk 0:02:58.2]}
5... Nc6 {[%clk 0:03:00]} 6. Nc3 {[%clk 0:02:50.4]} 6... O-O {[%clk 0:02:56.9]}
7. O-O {[%clk 0:02:46.6]} 7... e5 {[%clk 0:02:54.9]} 8. dxe5 {[%clk 0:02:42.8]}
8... Nxe5 {[%clk 0:02:54.6]} 9. c5 {[%clk 0:02:36.4]} 9... Qe7 {[%clk
0:02:46.4]} 10. b4 {[%clk 0:02:34.8]} 10... a5 {[%clk 0:02:45.5]} 11. Bb2 {[%clk
0:01:56]} 11... axb4 {[%clk 0:02:41.9]} 12. Nd5 {[%clk 0:01:54.8]} 12... Nxd5
{[%clk 0:02:39.8]} 13. Qxd5+ {[%clk 0:01:49.1]} 13... Kh8 {[%clk 0:02:38.7]} 14.
Rab1 {[%clk 0:01:44.7]} 14... c6 {[%clk 0:02:34.7]} 15. Qb3 {[%clk 0:01:28.9]}
15... Qxc5 {[%clk 0:02:34.4]} 16. Rfc1 {[%clk 0:01:13.4]} 16... Qe7 {[%clk
0:02:33.1]} 17. f4 {[%clk 0:00:55.2]} 17... Ng4 {[%clk 0:02:28.8]} 18. Bxg7+
{[%clk 0:00:52.8]} 18... Kxg7 {[%clk 0:02:28.8]} 19. Ng5 {[%clk 0:00:19.9]}
19... Qe3+ {[%clk 0:02:27.8]} 20. Qxe3 {[%clk 0:00:19.1]} 20... Nxe3 {[%clk
0:02:28.7]} 21. Rxb4 {[%clk 0:00:16.6]} 21... Nxg2 {[%clk 0:02:27]} 22. Kxg2
{[%clk 0:00:16.1]} 22... Rxa2 {[%clk 0:02:27]} 23. Kf3 {[%clk 0:00:15.3]} 23...
Re8 {[%clk 0:02:25.8]} 24. e3 {[%clk 0:00:13.7]} 24... h6 {[%clk 0:02:24.6]} 25.
Nh3 {[%clk 0:00:12.8]} 25... Ra3 {[%clk 0:02:21]} 26. Re1 {[%clk 0:00:11.7]}
26... d5 {[%clk 0:02:18.3]} 27. Nf2 {[%clk 0:00:08.8]} 27... Re7 {[%clk
0:02:16.3]} 28. Nd1 {[%clk 0:00:07.1]} 28... b5 {[%clk 0:02:12.7]} 29. Re2
{[%clk 0:00:06.9]} 29... Re4 {[%clk 0:02:10.7]} 30. Rb1 {[%clk 0:00:04.9]} 30...
b4 {[%clk 0:02:08.9]} 31. Rc2 {[%clk 0:00:04.6]} 31... Bd7 {[%clk 0:02:08.5]}
0-1

[Event "Early-Titled-Tuesday-Blitz-March-26-2024"]
[Site "Chess.com"]
[Date "2024.03.26"]
[Round "2"]
[White "KnightmareJoker"]
[Black "wqws"]
[Result "0-1"]
[WhiteElo "2293"]
[BlackElo "2735"]
[TimeControl "180+1"]
[EndTime "8:15:33 PDT"]
[Termination "wqws won by resignation"]

1. e4 {[%clk 0:03:00.9]} 1... e5 {[%clk 0:02:58.9]} 2. Nf3 {[%clk 0:03:01.2]}
2... Nc6 {[%clk 0:02:59.2]} 3. d4 {[%clk 0:03:01.7]} 3... exd4 {[%clk
0:02:59.3]} 4. Nxd4 {[%clk 0:03:02.4]} 4... Nf6 {[%clk 0:02:59.5]} 5. Nc3 {[%clk
0:03:02.7]} 5... Bb4 {[%clk 0:02:59.6]} 6. Nxc6 {[%clk 0:03:03.2]} 6... bxc6
{[%clk 0:02:59.9]} 7. Bd3 {[%clk 0:03:03.8]} 7... d5 {[%clk 0:02:59.7]} 8. exd5
{[%clk 0:03:03.1]} 8... O-O {[%clk 0:03:00.1]} 9. O-O {[%clk 0:03:03]} 9... cxd5
{[%clk 0:03:00]} 10. h3 {[%clk 0:03:01.3]} 10... Be6 {[%clk 0:02:58.1]} 11. Bg5
{[%clk 0:02:58.7]} 11... Be7 {[%clk 0:02:57.3]} 12. Qf3 {[%clk 0:02:51.1]} 12...
Rb8 {[%clk 0:02:57.1]} 13. Rab1 {[%clk 0:02:48.6]} 13... h6 {[%clk 0:02:55.5]}
14. Bf4 {[%clk 0:02:43.6]} 14... Rb4 {[%clk 0:02:54.2]} 15. a3 {[%clk
0:02:41.3]} 15... Rb6 {[%clk 0:02:52.7]} 16. Rfd1 {[%clk 0:02:32.6]} 16... c5
{[%clk 0:02:51.7]} 17. Be5 {[%clk 0:02:13.7]} 17... Qc8 {[%clk 0:02:36.9]} 18.
Bxf6 {[%clk 0:02:07.1]} 18... Bxf6 {[%clk 0:02:34.4]} 19. Nxd5 {[%clk
0:02:07.7]} 19... Bxd5 {[%clk 0:02:33.6]} 20. Qxd5 {[%clk 0:02:07.9]} 20... Bxb2
{[%clk 0:02:32.4]} 21. Qe4 {[%clk 0:01:53.8]} 21... g6 {[%clk 0:02:29.4]} 22.
Bc4 {[%clk 0:01:42.3]} 22... Qe8 {[%clk 0:02:14.4]} 23. Qd3 {[%clk 0:01:33.4]}
23... Qe5 {[%clk 0:02:07.6]} 24. Re1 {[%clk 0:01:29.8]} 24... Qf6 {[%clk
0:02:07.6]} 25. Re3 {[%clk 0:01:25.4]} 25... Rd8 {[%clk 0:02:02.1]} 26. Qe2
{[%clk 0:01:13.8]} 26... Bd4 {[%clk 0:01:23.8]} 27. Rf3 {[%clk 0:01:13.4]} 27...
Rxb1+ {[%clk 0:01:23.1]} 28. Kh2 {[%clk 0:01:13.9]} 28... Qe5+ {[%clk
0:01:23.1]} 29. Qxe5 {[%clk 0:01:11.8]} 29... Bxe5+ {[%clk 0:01:24]} 30. g3
{[%clk 0:01:12.3]} 30... Rd7 {[%clk 0:01:23.6]} 31. Re3 {[%clk 0:01:09.5]} 31...
Bd4 {[%clk 0:01:23]} 32. Re2 {[%clk 0:01:08.4]} 32... Kf8 {[%clk 0:01:22]} 33.
f4 {[%clk 0:01:08.4]} 33... Re7 {[%clk 0:01:22.1]} 34. Rd2 {[%clk 0:01:07.5]}
34... Ree1 {[%clk 0:01:22.3]} 0-1

[Event "Early-Titled-Tuesday-Blitz-March-26-2024"]
[Site "Chess.com"]
[Date "2024.03.26"]
[Round "2"]
[White "kingofthenil"]
[Black "wild3000"]
[Result "1-0"]
[WhiteElo "2786"]
[BlackElo "2459"]
[TimeControl "180+1"]
[EndTime "8:15:35 PDT"]
[Termination "kingofthenil won by resignation"]

1. d4 {[%clk 0:03:00.2]} 1... Nf6 {[%clk 0:02:59.4]} 2. Bf4 {[%clk 0:02:12.4]}
2... b6 {[%clk 0:02:54.7]} 3. Nc3 {[%clk 0:01:50.5]} 3... Bb7 {[%clk 0:02:53.7]}
4. d5 {[%clk 0:01:49.1]} 4... e6 {[%clk 0:02:47.4]} 5. e4 {[%clk 0:01:48.8]}
5... Bb4 {[%clk 0:02:45.6]} 6. Qd4 {[%clk 0:01:47.3]} 6... c5 {[%clk 0:02:34.7]}
7. Qd3 {[%clk 0:01:44.9]} 7... exd5 {[%clk 0:02:23.8]} 8. e5 {[%clk 0:01:31.6]}
8... Ne4 {[%clk 0:02:18.1]} 9. a3 {[%clk 0:01:27.9]} 9... Bxc3+ {[%clk
0:02:08.2]} 10. bxc3 {[%clk 0:01:25.7]} 10... Ba6 {[%clk 0:01:57.4]} 11. Qxd5
{[%clk 0:01:21.2]} 11... Bxf1 {[%clk 0:01:54.5]} 12. Kxf1 {[%clk 0:01:06]} 12...
O-O {[%clk 0:01:38.7]} 13. Qxa8 {[%clk 0:00:59]} 13... Nxc3 {[%clk 0:01:28.8]}
14. Ne2 {[%clk 0:00:55.4]} 14... Nxe2 {[%clk 0:01:16.1]} 15. Kxe2 {[%clk
0:00:56.3]} 15... Re8 {[%clk 0:01:14.3]} 16. Rhd1 {[%clk 0:00:54.5]} 16... Qh4
{[%clk 0:01:00.8]} 17. g3 {[%clk 0:00:54.3]} 17... Qxh2 {[%clk 0:00:57.3]} 18.
Rh1 {[%clk 0:00:52]} 1-0

[Event "Early-Titled-Tuesday-Blitz-March-26-2024"]
[Site "Chess.com"]
[Date "2024.03.26"]
[Round "2"]
[White "JG-17"]
[Black "LeRoidesChampions"]
[Result "0-1"]
[WhiteElo "2416"]
[BlackElo "2696"]
[TimeControl "180+1"]
[EndTime "8:15:41 PDT"]
[Termination "LeRoidesChampions won by resignation"]

1. e4 {[%clk 0:03:00.9]} 1... c5 {[%clk 0:02:50.3]} 2. Nf3 {[%clk 0:02:58.9]}
2... e6 {[%clk 0:02:50.9]} 3. d4 {[%clk 0:02:59.4]} 3... cxd4 {[%clk 0:02:51.8]}
4. Nxd4 {[%clk 0:03:00.3]} 4... a6 {[%clk 0:02:51.1]} 5. c4 {[%clk 0:03:00]}
5... Ne7 {[%clk 0:02:51.4]} 6. Nc3 {[%clk 0:03:00.1]} 6... Nbc6 {[%clk
0:02:52.1]} 7. Nc2 {[%clk 0:02:53.2]} 7... Ng6 {[%clk 0:02:51.1]} 8. Be3 {[%clk
0:02:50.6]} 8... Qc7 {[%clk 0:02:49.2]} 9. g3 {[%clk 0:02:48.1]} 9... h5 {[%clk
0:02:48.6]} 10. h4 {[%clk 0:02:42.8]} 10... Nge5 {[%clk 0:02:48.7]} 11. Be2
{[%clk 0:02:40.9]} 11... g6 {[%clk 0:02:48.3]} 12. f4 {[%clk 0:02:39.2]} 12...
Ng4 {[%clk 0:02:29.1]} 13. Bxg4 {[%clk 0:02:39.7]} 13... hxg4 {[%clk 0:02:30]}
14. Qxg4 {[%clk 0:02:40.1]} 14... b6 {[%clk 0:02:28.9]} 15. e5 {[%clk
0:02:36.2]} 15... Bb7 {[%clk 0:02:28.3]} 16. Ne4 {[%clk 0:02:35.9]} 16... O-O-O
{[%clk 0:02:28.2]} 17. O-O-O {[%clk 0:02:33.6]} 17... Na5 {[%clk 0:02:28]} 18.
Nd6+ {[%clk 0:02:27.6]} 18... Bxd6 {[%clk 0:02:27.9]} 19. exd6 {[%clk
0:02:23.6]} 19... Qxc4 {[%clk 0:02:28.2]} 20. Bxb6 {[%clk 0:02:11.6]} 20... Qxa2
{[%clk 0:02:19.7]} 21. Bxa5 {[%clk 0:01:54.3]} 21... Qxa5 {[%clk 0:02:19.8]} 22.
Rhe1 {[%clk 0:01:52.1]} 22... Kb8 {[%clk 0:02:18.7]} 23. Qg5 {[%clk 0:01:45.2]}
23... Qa2 {[%clk 0:02:02.3]} 24. Re5 {[%clk 0:01:27.6]} 24... Rc8 {[%clk
0:02:01.7]} 25. Rc5 {[%clk 0:01:21.4]} 25... Rxc5 {[%clk 0:02:01.1]} 26. Qxc5
{[%clk 0:01:22]} 26... Rc8 {[%clk 0:02:01.9]} 27. Qb4 {[%clk 0:01:18.7]} 27...
Rc4 {[%clk 0:01:44.4]} 28. Qa3 {[%clk 0:01:13.2]} 28... Qxa3 {[%clk 0:01:15.3]}
29. bxa3 {[%clk 0:01:14.1]} 29... Be4 {[%clk 0:01:16.1]} 30. Rd2 {[%clk
0:01:13.7]} 30... f5 {[%clk 0:01:16.7]} 31. Kb2 {[%clk 0:01:09.3]} 31... Rxc2+
{[%clk 0:01:16.2]} 32. Rxc2 {[%clk 0:01:10.2]} 32... Bxc2 {[%clk 0:01:17.1]} 33.
Kxc2 {[%clk 0:01:10.5]} 33... Kb7 {[%clk 0:01:18]} 34. Kd3 {[%clk 0:01:06.3]}
34... Kc6 {[%clk 0:01:17.6]} 35. Ke3 {[%clk 0:01:06.1]} 35... Kxd6 {[%clk
0:01:18.5]} 36. Kf3 {[%clk 0:01:06.5]} 36... Ke7 {[%clk 0:01:18]} 37. g4 {[%clk
0:01:06.9]} 37... fxg4+ {[%clk 0:01:18]} 38. Kxg4 {[%clk 0:01:07.8]} 38... Kf6
{[%clk 0:01:18.8]} 0-1

[Event "Early-Titled-Tuesday-Blitz-March-26-2024"]
[Site "Chess.com"]
[Date "2024.03.26"]
[Round "2"]
[White "Pedrada88"]
[Black "Zampronha1971"]
[Result "1-0"]
[WhiteElo "2539"]
[BlackElo "2349"]
[TimeControl "180+1"]
[EndTime "8:15:41 PDT"]
[Termination "Pedrada88 won by resignation"]

1. g3 {[%clk 0:03:00.9]} 1... Nf6 {[%clk 0:02:58.9]} 2. Bg2 {[%clk 0:03:01.5]}
2... e6 {[%clk 0:02:59.8]} 3. c4 {[%clk 0:03:02]} 3... d5 {[%clk 0:03:00.1]} 4.
b3 {[%clk 0:03:02.5]} 4... d4 {[%clk 0:02:54.8]} 5. Nf3 {[%clk 0:03:00]} 5... c5
{[%clk 0:02:55.3]} 6. O-O {[%clk 0:02:59.5]} 6... Nc6 {[%clk 0:02:56]} 7. e3
{[%clk 0:02:58.1]} 7... Be7 {[%clk 0:02:46.8]} 8. exd4 {[%clk 0:02:58.4]} 8...
cxd4 {[%clk 0:02:47.7]} 9. d3 {[%clk 0:02:57.7]} 9... O-O {[%clk 0:02:46.2]} 10.
a3 {[%clk 0:02:58.2]} 10... a5 {[%clk 0:02:43.8]} 11. Re1 {[%clk 0:02:58.7]}
11... Nd7 {[%clk 0:02:34.4]} 12. Nbd2 {[%clk 0:02:51.8]} 12... Nc5 {[%clk
0:02:27.6]} 13. Ne4 {[%clk 0:02:50.5]} 13... Nxe4 {[%clk 0:02:25]} 14. Rxe4
{[%clk 0:02:51.4]} 14... Bf6 {[%clk 0:02:19.3]} 15. h4 {[%clk 0:02:47.8]} 15...
e5 {[%clk 0:02:18.3]} 16. Bg5 {[%clk 0:02:41.4]} 16... Bf5 {[%clk 0:02:15.7]}
17. Re2 {[%clk 0:02:37.8]} 17... Bg4 {[%clk 0:02:09]} 18. Qd2 {[%clk 0:02:36.1]}
18... Re8 {[%clk 0:01:56.8]} 19. Rae1 {[%clk 0:02:35.3]} 19... Qd7 {[%clk
0:01:36.1]} 20. Bxf6 {[%clk 0:02:34.3]} 20... gxf6 {[%clk 0:01:35.6]} 21. Qh6
{[%clk 0:02:33.2]} 21... Qf5 {[%clk 0:01:30.8]} 22. Nh2 {[%clk 0:02:25.2]} 22...
Bxe2 {[%clk 0:01:30.3]} 23. Be4 {[%clk 0:02:25.4]} 23... Bxd3 {[%clk 0:01:21.5]}
24. Bxf5 {[%clk 0:02:24]} 24... Bxf5 {[%clk 0:01:17.8]} 25. Qxf6 {[%clk
0:02:24]} 25... Bc2 {[%clk 0:01:14.9]} 26. h5 {[%clk 0:02:22.2]} 26... Re6
{[%clk 0:01:13.1]} 27. Qg5+ {[%clk 0:02:19.5]} 27... Kh8 {[%clk 0:01:13.5]} 28.
Ng4 {[%clk 0:02:17.4]} 28... Rg8 {[%clk 0:01:13.4]} 29. Qh4 {[%clk 0:02:14.9]}
29... Bxb3 {[%clk 0:00:56.3]} 30. Nxe5 {[%clk 0:02:08.9]} 30... Nxe5 {[%clk
0:00:44.9]} 31. Rxe5 {[%clk 0:02:08.8]} 31... Rd6 {[%clk 0:00:15.4]} 32. Rd5
{[%clk 0:02:07.4]} 32... Rgd8 {[%clk 0:00:10.1]} 33. Qxd8+ {[%clk 0:01:57.9]}
1-0

[Event "Early-Titled-Tuesday-Blitz-March-26-2024"]
[Site "Chess.com"]
[Date "2024.03.26"]
[Round "2"]
[White "ljuks68"]
[Black "Defend1r"]
[Result "1-0"]
[WhiteElo "2424"]
[BlackElo "2657"]
[TimeControl "180+1"]
[EndTime "8:15:52 PDT"]
[Termination "ljuks68 won by resignation"]

1. e4 {[%clk 0:03:00.9]} 1... c5 {[%clk 0:02:19.8]} 2. Nf3 {[%clk 0:02:58.6]}
2... d6 {[%clk 0:02:19.8]} 3. d4 {[%clk 0:02:59]} 3... cxd4 {[%clk 0:02:20.4]}
4. Nxd4 {[%clk 0:02:59.7]} 4... Nf6 {[%clk 0:02:21]} 5. Nc3 {[%clk 0:03:00.2]}
5... a6 {[%clk 0:02:21.4]} 6. Bg5 {[%clk 0:03:00.5]} 6... e6 {[%clk 0:02:20.2]}
7. f4 {[%clk 0:03:00.9]} 7... Nbd7 {[%clk 0:02:16.4]} 8. Qf3 {[%clk 0:03:00.1]}
8... h6 {[%clk 0:02:16.6]} 9. Bh4 {[%clk 0:02:59.7]} 9... e5 {[%clk 0:02:17]}
10. Bxf6 {[%clk 0:02:50.5]} 10... Nxf6 {[%clk 0:02:06.9]} 11. fxe5 {[%clk
0:02:47]} 11... Bg4 {[%clk 0:01:58]} 12. Qg3 {[%clk 0:02:44.1]} 12... dxe5
{[%clk 0:01:54.8]} 13. Qxe5+ {[%clk 0:02:41.3]} 13... Be7 {[%clk 0:01:53.8]} 14.
h3 {[%clk 0:02:21]} 14... O-O {[%clk 0:01:53]} 15. hxg4 {[%clk 0:02:19]} 15...
Bd6 {[%clk 0:01:53.5]} 16. Qf5 {[%clk 0:02:05.9]} 16... Bg3+ {[%clk 0:01:53.6]}
17. Ke2 {[%clk 0:02:01.9]} 17... Qxd4 {[%clk 0:01:53.3]} 18. Rd1 {[%clk
0:02:02]} 18... Qb6 {[%clk 0:01:50.8]} 19. Rd3 {[%clk 0:02:01.1]} 19... Bc7
{[%clk 0:01:44.6]} 20. g5 {[%clk 0:01:52.5]} 20... Qxb2 {[%clk 0:01:37.1]} 21.
gxf6 {[%clk 0:01:47.9]} 21... Qxc2+ {[%clk 0:01:11.6]} 22. Kf3 {[%clk
0:01:28.2]} 22... Rfd8 {[%clk 0:00:19]} 23. Nd5 {[%clk 0:01:16.3]} 1-0

[Event "Early-Titled-Tuesday-Blitz-March-26-2024"]
[Site "Chess.com"]
[Date "2024.03.26"]
[Round "2"]
[White "wonderfultime"]
[Black "ChristianArca"]
[Result "1-0"]
[WhiteElo "3007"]
[BlackElo "2668"]
[TimeControl "180+1"]
[EndTime "8:15:58 PDT"]
[Termination "wonderfultime won by resignation"]

1. d4 {[%clk 0:02:52.2]} 1... d5 {[%clk 0:02:59.1]} 2. Nf3 {[%clk 0:02:52]} 2...
Nf6 {[%clk 0:02:59.4]} 3. Bf4 {[%clk 0:02:52.4]} 3... c5 {[%clk 0:02:59]} 4. c3
{[%clk 0:02:52.6]} 4... Nc6 {[%clk 0:02:58.7]} 5. e3 {[%clk 0:02:53]} 5... Qb6
{[%clk 0:02:58.8]} 6. Qc2 {[%clk 0:02:53.1]} 6... cxd4 {[%clk 0:02:55.3]} 7.
exd4 {[%clk 0:02:51.8]} 7... Bg4 {[%clk 0:02:55.3]} 8. Nbd2 {[%clk 0:02:43.3]}
8... Rc8 {[%clk 0:02:54.8]} 9. Bd3 {[%clk 0:02:38.4]} 9... e6 {[%clk 0:02:50.1]}
10. O-O {[%clk 0:02:38.3]} 10... Be7 {[%clk 0:02:50.3]} 11. Rae1 {[%clk
0:02:30.5]} 11... O-O {[%clk 0:02:50.3]} 12. Qb1 {[%clk 0:02:31.1]} 12... Bh5
{[%clk 0:02:47.3]} 13. Ne5 {[%clk 0:02:30.3]} 13... Bg6 {[%clk 0:02:46.2]} 14.
Nxg6 {[%clk 0:02:07.7]} 14... hxg6 {[%clk 0:02:47.1]} 15. Nf3 {[%clk 0:02:08.3]}
15... Qd8 {[%clk 0:02:44.3]} 16. Re2 {[%clk 0:01:59]} 16... Bd6 {[%clk
0:02:27.6]} 17. Bg5 {[%clk 0:01:59]} 17... Be7 {[%clk 0:02:27.4]} 18. Rfe1
{[%clk 0:01:58]} 18... a6 {[%clk 0:02:26]} 19. h4 {[%clk 0:01:52.1]} 19... Nh5
{[%clk 0:02:16.9]} 20. g3 {[%clk 0:01:48.5]} 20... Nf6 {[%clk 0:02:11]} 21. Kg2
{[%clk 0:01:44.4]} 21... b5 {[%clk 0:02:06.3]} 22. a3 {[%clk 0:01:43.1]} 22...
Rb8 {[%clk 0:02:05.3]} 23. Rh1 {[%clk 0:01:34.3]} 23... Rb7 {[%clk 0:01:17.9]}
24. Bxf6 {[%clk 0:01:29.9]} 24... Bxf6 {[%clk 0:01:18.5]} 25. h5 {[%clk
0:01:30.1]} 25... gxh5 {[%clk 0:01:19.4]} 26. Bh7+ {[%clk 0:01:29.5]} 26... Kh8
{[%clk 0:01:15.6]} 27. Rxh5 {[%clk 0:01:30.4]} 27... g6 {[%clk 0:01:09.8]} 28.
Bxg6+ {[%clk 0:01:29.3]} 28... Kg7 {[%clk 0:00:52.8]} 29. Rh7+ {[%clk
0:01:21.5]} 29... Kg8 {[%clk 0:00:52.6]} 30. Qh1 {[%clk 0:01:17.7]} 30... Bg7
{[%clk 0:00:43.1]} 31. Rh8+ {[%clk 0:01:16.4]} 1-0

[Event "Early-Titled-Tuesday-Blitz-March-26-2024"]
[Site "Chess.com"]
[Date "2024.03.26"]
[Round "2"]
[White "lucasran"]
[Black "TigrVShlyape"]
[Result "0-1"]
[WhiteElo "2603"]
[BlackElo "2904"]
[TimeControl "180+1"]
[EndTime "8:15:58 PDT"]
[Termination "TigrVShlyape won by resignation"]

1. Nf3 {[%clk 0:03:00.9]} 1... Nf6 {[%clk 0:02:59.1]} 2. c4 {[%clk 0:02:54.8]}
2... c6 {[%clk 0:02:56.8]} 3. Nc3 {[%clk 0:02:53.9]} 3... d5 {[%clk 0:02:57.1]}
4. e3 {[%clk 0:02:53.8]} 4... a6 {[%clk 0:02:53.6]} 5. d4 {[%clk 0:02:49.6]}
5... Bf5 {[%clk 0:02:52.1]} 6. Bd3 {[%clk 0:02:38.1]} 6... Bg6 {[%clk
0:02:45.8]} 7. O-O {[%clk 0:02:35.5]} 7... e6 {[%clk 0:02:45.9]} 8. b3 {[%clk
0:02:25.4]} 8... Nbd7 {[%clk 0:02:45.4]} 9. Bb2 {[%clk 0:02:25.3]} 9... Bd6
{[%clk 0:02:40]} 10. Qc2 {[%clk 0:02:21]} 10... b5 {[%clk 0:02:33]} 11. a4
{[%clk 0:02:14.3]} 11... b4 {[%clk 0:02:31]} 12. Ne2 {[%clk 0:02:12.3]} 12... a5
{[%clk 0:02:26.6]} 13. Ne5 {[%clk 0:01:58.6]} 13... Qc7 {[%clk 0:02:21.1]} 14.
Nxd7 {[%clk 0:01:33.5]} 14... Kxd7 {[%clk 0:02:02.1]} 15. h3 {[%clk 0:01:25.7]}
15... Rhc8 {[%clk 0:02:00.6]} 16. c5 {[%clk 0:01:20.3]} 16... Be7 {[%clk
0:01:59.3]} 17. Bxg6 {[%clk 0:01:19.4]} 17... hxg6 {[%clk 0:01:58.8]} 18. Ng3
{[%clk 0:01:19.6]} 18... Rh8 {[%clk 0:01:54.9]} 19. e4 {[%clk 0:01:14.4]} 19...
dxe4 {[%clk 0:01:53.7]} 20. Nxe4 {[%clk 0:01:10.4]} 20... Nd5 {[%clk 0:01:47.8]}
21. Rad1 {[%clk 0:01:04.4]} 21... Kc8 {[%clk 0:01:44]} 22. Bc1 {[%clk
0:01:03.9]} 22... Kb7 {[%clk 0:01:43.3]} 23. Bg5 {[%clk 0:01:02.3]} 23... f6
{[%clk 0:01:31.5]} 24. Be3 {[%clk 0:01:01.4]} 24... f5 {[%clk 0:01:29.8]} 25.
Ng5 {[%clk 0:00:47.4]} 25... Nxe3 {[%clk 0:01:28.6]} 26. Nxe6 {[%clk 0:00:40.4]}
26... Nxc2 {[%clk 0:01:25.6]} 27. Nxc7 {[%clk 0:00:40]} 27... Kxc7 {[%clk
0:01:25.4]} 28. Rd2 {[%clk 0:00:40.9]} 28... Na3 {[%clk 0:01:18.9]} 29. Re1
{[%clk 0:00:32.9]} 29... Bf6 {[%clk 0:01:17.4]} 30. d5 {[%clk 0:00:32.7]} 30...
cxd5 {[%clk 0:01:16.8]} 31. Rxd5 {[%clk 0:00:32.3]} 31... Rad8 {[%clk
0:01:16.7]} 0-1

[Event "Early-Titled-Tuesday-Blitz-March-26-2024"]
[Site "Chess.com"]
[Date "2024.03.26"]
[Round "2"]
[White "Sattarov_Bobur"]
[Black "PolandHussars"]
[Result "1-0"]
[WhiteElo "2832"]
[BlackElo "2564"]
[TimeControl "180+1"]
[EndTime "8:15:59 PDT"]
[Termination "Sattarov_Bobur won by checkmate"]

1. e4 {[%clk 0:03:00.9]} 1... e5 {[%clk 0:02:59.8]} 2. Nf3 {[%clk 0:03:00.8]}
2... Nc6 {[%clk 0:03:00.3]} 3. Bc4 {[%clk 0:03:01.5]} 3... g6 {[%clk 0:03:00.1]}
4. d4 {[%clk 0:03:01.2]} 4... exd4 {[%clk 0:02:59.1]} 5. Bg5 {[%clk 0:03:01.8]}
5... Be7 {[%clk 0:02:56.7]} 6. Bxe7 {[%clk 0:03:01.8]} 6... Qxe7 {[%clk
0:02:56.9]} 7. O-O {[%clk 0:03:00.8]} 7... Qc5 {[%clk 0:02:51.6]} 8. Bb3 {[%clk
0:02:50.9]} 8... d6 {[%clk 0:02:51.6]} 9. c3 {[%clk 0:02:46.2]} 9... dxc3 {[%clk
0:02:51.3]} 10. Nxc3 {[%clk 0:02:46.1]} 10... Bg4 {[%clk 0:02:46.8]} 11. Nd5
{[%clk 0:02:30]} 11... Rc8 {[%clk 0:02:32.8]} 12. Rc1 {[%clk 0:02:27.8]} 12...
Qa5 {[%clk 0:02:28.1]} 13. h3 {[%clk 0:02:26.9]} 13... Bxf3 {[%clk 0:02:21.4]}
14. Qxf3 {[%clk 0:02:27.8]} 14... Ne5 {[%clk 0:02:21.6]} 15. Qg3 {[%clk
0:02:22.3]} 15... c6 {[%clk 0:02:18.3]} 16. f4 {[%clk 0:02:20.6]} 16... Nd7
{[%clk 0:02:12.6]} 17. f5 {[%clk 0:02:20.7]} 17... Qd8 {[%clk 0:02:01.9]} 18.
fxg6 {[%clk 0:02:15.8]} 18... hxg6 {[%clk 0:02:01.1]} 19. Rxf7 {[%clk
0:01:55.7]} 19... Kxf7 {[%clk 0:02:00.1]} 20. Nf4+ {[%clk 0:01:55.3]} 20... d5
{[%clk 0:01:52.9]} 21. Qxg6+ {[%clk 0:01:53.7]} 21... Ke7 {[%clk 0:01:53.2]} 22.
exd5 {[%clk 0:01:52.4]} 22... Ngf6 {[%clk 0:01:50.1]} 23. dxc6 {[%clk
0:01:40.2]} 23... Rxc6 {[%clk 0:01:45.4]} 24. Re1+ {[%clk 0:01:24.4]} 24... Kd6
{[%clk 0:01:44]} 25. Ne6 {[%clk 0:01:24.8]} 25... Qb6+ {[%clk 0:01:41.8]} 26.
Kh1 {[%clk 0:01:23.4]} 26... Rc5 {[%clk 0:01:22.1]} 27. Rd1+ {[%clk 0:01:02]}
27... Rd5 {[%clk 0:01:03.7]} 28. Bxd5 {[%clk 0:01:01.4]} 28... Nxd5 {[%clk
0:01:04.6]} 29. Nf4+ {[%clk 0:01:01.1]} 29... Ke5 {[%clk 0:00:57]} 30. Rxd5+
{[%clk 0:00:55.7]} 30... Kxf4 {[%clk 0:00:56.4]} 31. Qg5+ {[%clk 0:00:56.1]}
31... Ke4 {[%clk 0:00:56.2]} 32. Qf5+ {[%clk 0:00:56.7]} 32... Ke3 {[%clk
0:00:56.6]} 33. Rd3+ {[%clk 0:00:57.6]} 33... Ke2 {[%clk 0:00:57]} 34. Qf3+
{[%clk 0:00:58.5]} 34... Ke1 {[%clk 0:00:57.5]} 35. Rd1# {[%clk 0:00:59.4]} 1-0

[Event "Early-Titled-Tuesday-Blitz-March-26-2024"]
[Site "Chess.com"]
[Date "2024.03.26"]
[Round "2"]
[White "venturov"]
[Black "Roosters19"]
[Result "1-0"]
[WhiteElo "2526"]
[BlackElo "2300"]
[TimeControl "180+1"]
[EndTime "8:16:04 PDT"]
[Termination "venturov won by resignation"]

1. e4 {[%clk 0:03:00.9]} 1... c5 {[%clk 0:02:58.3]} 2. Nf3 {[%clk 0:03:01]} 2...
Nc6 {[%clk 0:02:55]} 3. g3 {[%clk 0:02:58.3]} 3... g6 {[%clk 0:02:53.1]} 4. Bg2
{[%clk 0:02:58.4]} 4... Bg7 {[%clk 0:02:52.8]} 5. O-O {[%clk 0:02:58.9]} 5...
Nf6 {[%clk 0:02:50.2]} 6. Re1 {[%clk 0:02:58.5]} 6... O-O {[%clk 0:02:42.7]} 7.
d3 {[%clk 0:02:58.5]} 7... d6 {[%clk 0:02:40.4]} 8. h3 {[%clk 0:02:57.8]} 8...
h6 {[%clk 0:02:24.2]} 9. d4 {[%clk 0:02:52.5]} 9... cxd4 {[%clk 0:02:23.5]} 10.
Nxd4 {[%clk 0:02:53.4]} 10... Bd7 {[%clk 0:02:20.2]} 11. Nc3 {[%clk 0:02:51.5]}
11... Rc8 {[%clk 0:02:17.2]} 12. Be3 {[%clk 0:02:36.4]} 12... a6 {[%clk
0:02:15]} 13. Qd2 {[%clk 0:02:35.1]} 13... b5 {[%clk 0:02:05.3]} 14. Nxc6 {[%clk
0:02:29.9]} 14... Bxc6 {[%clk 0:02:01]} 15. Bxh6 {[%clk 0:02:24.4]} 15... b4
{[%clk 0:01:30.5]} 16. Bxg7 {[%clk 0:02:18.5]} 16... Kxg7 {[%clk 0:01:27.4]} 17.
Nd5 {[%clk 0:02:17]} 17... Bxd5 {[%clk 0:01:20.4]} 18. exd5 {[%clk 0:02:17.9]}
18... a5 {[%clk 0:01:20.2]} 19. a3 {[%clk 0:02:04.4]} 19... Rc5 {[%clk
0:00:55.6]} 20. axb4 {[%clk 0:01:59]} 20... axb4 {[%clk 0:00:56.5]} 21. Qxb4
{[%clk 0:01:29.8]} 21... Rxc2 {[%clk 0:00:55.3]} 22. Ra7 {[%clk 0:01:25.4]}
22... Re8 {[%clk 0:00:54.7]} 23. g4 {[%clk 0:01:19.6]} 23... Rc7 {[%clk
0:00:50.6]} 24. Ra3 {[%clk 0:01:14]} 24... Qb8 {[%clk 0:00:47.5]} 25. Qd4 {[%clk
0:01:13.8]} 25... Kg8 {[%clk 0:00:41.8]} 26. Rae3 {[%clk 0:01:09.5]} 26... Rb7
{[%clk 0:00:37.1]} 27. Qxf6 {[%clk 0:01:05.8]} 1-0